lending/lending_fUSD_20240111
["ID","MTS","AMOUNT","RATE_DAILY","PERIOD"]
[311194878,1704978654842,-500.0,0.00039726,4]
[311194879,1704978654851,-500.0,0.00039726,4]
[311194880,1704978654860,-500.0,0.00039726,4]
[311194881,1704978654869,-500.0,0.00039726,4]
[311194882,1704978654878,-500.0,0.00039726,4]
[311194883,1704978654888,-500.0,0.00039726,4]
[311194884,1704978654897,-431.08,0.00039726,4]
[311194885,1704978654906,-500.0,0.00039726,4]
[311194886,1704978654915,-500.0,0.00039726,4]
[311194887,1704978654925,-456.04,0.00039726,4]
[311194888,1704978654936,-500.0,0.00039726,4]
[311194889,1704978654945,-306.42,0.00039726,4]
[311194890,1704978654955,-424.68,0.00039726,4]
[311194891,1704978654964,-500.0,0.00039726,4]
[311194892,1704978654973,-500.0,0.00039726,4]
[311194893,1704978654983,-1181.97,0.00039726,4]
[311194894,1704978654992,-500.0,0.00039726,4]
[311194895,1704978655001,-469.85289539,0.00039726,4]
[311194896,1704978655010,-500.0,0.00039726,4]
[311194897,1704978655020,-500.0,0.00039726,4]
[311194898,1704978655029,-500.0,0.00039726,4]
[311194899,1704978655039,-500.0,0.00039726,4]
[311194900,1704978655048,-500.0,0.00039726,4]
[311194901,1704978655058,-469.0,0.00039726,4]
[311194902,1704978655067,-500.0,0.00039726,4]
[311194903,1704978655076,-265.35,0.00039726,4]
[311194904,1704978655085,-500.0,0.00039726,4]
[311194905,1704978655095,-500.0,0.00039726,4]
[311194906,1704978655104,-500.0,0.00039726,4]
[311194907,1704978655114,-500.0,0.00039726,4]
[311194908,1704978655123,-500.0,0.00039726,4]
[311194909,1704978655132,-500.0,0.00039726,4]
[311194910,1704978655142,-913.59,0.00039726,4]
[311194911,1704978655151,-1281.5,0.00039726,4]
[311194912,1704978655161,-500.0,0.00039726,4]
[311194913,1704978655171,-500.0,0.00039726,4]
[311194914,1704978655181,-626.46,0.00039726,4]
[311194915,1704978655192,-500.0,0.00039726,4]
[311194916,1704978655201,-1966.04,0.00039726,4]
[311194917,1704978655211,-500.0,0.00039726,4]
[311194918,1704978655221,-500.0,0.00039726,4]
[311194919,1704978655230,-500.0,0.00039726,4]
[311194920,1704978655240,-500.0,0.00039726,4]
[311194921,1704978655249,-500.0,0.00039726,4]
[311194922,1704978655260,-2839.29,0.00039726,4]
[311194923,1704978655270,-500.0,0.00039726,4]
[311194924,1704978655279,-500.0,0.00039726,4]
[311194925,1704978655288,-500.0,0.00039726,4]
[311194926,1704978655298,-954.32,0.00039726,4]
[311194927,1704978655307,-304.96,0.00039726,4]
[311194928,1704978655316,-500.0,0.00039726,4]
[311194929,1704978655325,-586.72,0.00039726,4]
[311194930,1704978655335,-500.0,0.00039726,4]
[311194931,1704978655344,-1615.09,0.00039726,4]
[311194932,1704978655354,-500.0,0.00039726,4]
[311194933,1704978655363,-500.0,0.00039726,4]
[311194934,1704978655372,-500.0,0.00039726,4]
[311194935,1704978655381,-500.0,0.00039726,4]
[311194936,1704978655391,-500.0,0.00039726,4]
[311194937,1704978655400,-500.0,0.00039726,4]
[311194938,1704978655409,-500.0,0.00039726,4]
[311194939,1704978655419,-611.05,0.00039726,4]
[311194940,1704978655429,-500.0,0.00039726,4]
[311194941,1704978655440,-4590.07,0.00039726,4]
[311194942,1704978655449,-663.95,0.00039726,4]
[311194943,1704978655459,-575.43,0.00039726,4]
[311194944,1704978655468,-500.0,0.00039726,4]
[311194945,1704978655478,-549.34,0.00039726,4]
[311194946,1704978655487,-500.0,0.00039726,4]
[311194947,1704978655497,-537.84,0.00039726,4]
[311194948,1704978655506,-500.0,0.00039726,4]
[311194949,1704978655516,-500.0,0.00039726,4]
[311194950,1704978655525,-500.0,0.00039726,4]
[311194951,1704978655534,-500.0,0.00039726,4]
[311194952,1704978655544,-935.97,0.00039726,4]
[311194953,1704978655554,-500.0,0.00039726,4]
[311194954,1704978655563,-500.0,0.00039726,4]
[311194955,1704978655572,-956.72,0.00039726,4]
[311194956,1704978655581,-500.0,0.00039726,4]
[311194957,1704978655591,-1726.33,0.00039726,4]
[311194958,1704978655600,-500.0,0.00039726,4]
[311194959,1704978655609,-500.0,0.00039726,4]
[311194960,1704978655618,-1108.91,0.00039726,4]
[311194961,1704978655627,-500.0,0.00039726,4]
[311194962,1704978655637,-513.62,0.00039726,4]
[311194963,1704978655646,-500.0,0.00039726,4]
[311194964,1704978655656,-500.0,0.00039726,5]
[311194965,1704978655664,-500.0,0.00039726,4]
[311194966,1704978655675,-250.31,0.00039726,4]
[311194967,1704978655687,-557.28,0.00039726,4]
[311194968,1704978655696,-165.29,0.00039726,4]
[311194969,1704978655705,-636.68,0.00039726,4]
[311194970,1704978655716,-500.0,0.00039726,4]
[311194971,1704978655725,-500.0,0.00039726,4]
[311194972,1704978655735,-500.0,0.00039726,4]
[311194973,1704978655745,-500.0,0.00039726,4]
[311194974,1704978655756,-500.0,0.00039726,4]
[311194975,1704978655766,-500.0,0.00039726,4]
[311194976,1704978655775,-500.0,0.00039726,4]
[311194977,1704978655784,-673.75,0.00039726,4]
[311194978,1704978655794,-500.0,0.00039726,4]
[311194979,1704978655804,-500.0,0.00039726,4]
[311194980,1704978655813,-500.0,0.00039726,4]
[311194981,1704978655823,-1296.45,0.00039726,4]
[311194982,1704978655833,-500.0,0.00039726,4]
[311194983,1704978655842,-500.0,0.00039726,4]
[311194984,1704978655852,-1001.34,0.00039726,4]
[311194985,1704978655862,-500.0,0.00039726,4]
[311194986,1704978655871,-500.0,0.00039726,4]
[311194987,1704978655881,-500.0,0.00039726,4]
[311194988,1704978655890,-500.0,0.00039726,5]
[311194989,1704978655898,-500.0,0.00039726,4]
[311194990,1704978655907,-500.0,0.00039726,4]
[311194991,1704978655917,-531.47,0.00039726,4]
[311194992,1704978655926,-210.14243845,0.00039726,4]
[311194993,1704978655937,-500.0,0.00039726,4]
[311194994,1704978655947,-500.0,0.00039726,4]
[311194995,1704978655956,-500.0,0.00039726,4]
[311194996,1704978655966,-500.0,0.00039726,4]
[311194997,1704978655976,-500.0,0.00039726,4]
[311194998,1704978655985,-500.0,0.00039726,4]
[311194999,1704978655995,-1817.72,0.00039726,4]
[311195000,1704978656005,-500.0,0.00039726,4]
[311195001,1704978656014,-500.0,0.00039726,4]
[311195002,1704978656025,-500.0,0.00039726,4]
[311195003,1704978656034,-500.0,0.00039726,4]
[311195004,1704978656044,-782.8,0.00039726,4]
[311195005,1704978656053,-500.0,0.00039726,4]
[311195006,1704978656062,-500.0,0.00039726,4]
[311195007,1704978656072,-1749.36,0.00039726,4]
[311195008,1704978656081,-500.0,0.00039726,4]
[311195009,1704978656090,-500.0,0.00039726,4]
[311195010,1704978656100,-500.0,0.00039726,4]
[311195011,1704978656109,-500.0,0.00039726,4]
[311195012,1704978656119,-500.0,0.00039726,4]
[311195013,1704978656128,-500.0,0.00039726,4]
[311195014,1704978656137,-500.0,0.00039726,4]
[311195015,1704978656146,-435.76,0.00039726,4]
[311195016,1704978656155,-608.95,0.00039726,4]
[311195017,1704978656212,-500.0,0.00039726,4]
[311195018,1704978656223,-2000.0,0.00039726,30]
[311195019,1704978656233,-151.0,0.00039726,7]
[311195020,1704978656242,-151.0,0.00039726,7]
[311195021,1704978656251,-151.0,0.00039726,7]
[311195022,1704978656261,-151.0,0.00039726,7]
[311195023,1704978656270,-990.0,0.00039726,30]
[311195024,1704978656279,-990.0,0.00039726,30]
[311195025,1704978656288,-306.60094349,0.00039758,2]
[311195026,1704978656298,-150.0,0.00039782,2]
[311195027,1704978656307,-347.21599962,0.000398,31]
[311195028,1704978656317,-182.32,0.00039834,60]
[311195029,1704978656326,-152.71432783,0.0003984,2]
[311195030,1704978656337,-167.89499123,0.0003987,9]
[311195031,1704978656349,-2048.0,0.0003989,3]
[311195032,1704978656358,-193.16846,0.0003989,7]
[311195033,1704978656368,-193.16846,0.0003989,7]
[311195034,1704978656377,-253.033816,0.0003989,7]
[311195035,1704978656387,-886.66,0.00039899,4]
[311195036,1704978656396,-886.66,0.00039899,4]
[311195037,1704978656405,-367.89001,0.00039899,2]
[311195038,1704978656415,-220611.58797333,0.000399,9]
[311195039,1704978656436,-124662.73028926,0.000399,9]
[311195040,1704978656453,-507.65898413,0.000399,9]
[311195041,1704978656464,-1942.37721319,0.000399,9]
[311195042,1704978656475,-289.96267146,0.000399,9]
[311195043,1704978656506,-8513.56487664,0.000399,9]
[311195044,1704978656517,-1424.40289611,0.000399,9]
[311195045,1704978656544,-670.23149419,0.000399,9]
[311195046,1704978656556,-404.95572642,0.000399,9]
[311195047,1704978656568,-4892.6045102,0.000399,9]
[311195048,1704978656581,-3602.21195516,0.000399,9]
[311195049,1704978656598,-4128.63986883,0.000399,9]
[311195050,1704978656610,-3933.36463944,0.000399,9]
[311195051,1704978656621,-4432.26839026,0.000399,9]
[311195052,1704978656632,-3986.2815106,0.000399,9]
[311195053,1704978656645,-12915.68685511,0.000399,9]
[311195054,1704978656660,-720.54062004,0.000399,9]
[311195055,1704978656672,-1075.51440885,0.000399,9]
[311195056,1704978656686,-23871.47623088,0.000399,9]
[311195057,1704978656706,-500.0,0.00039178,4]
[311195058,1704978656716,-91.27639412,0.000399,9]
[311195059,1704978656732,-473.65542,0.000399,9]
[311195060,1704978656743,-862.0248,0.000399,9]
[311195061,1704978656897,-1161.748061,0.000399,9]
[311195062,1704978656909,-464.71845404,0.000399,9]
[311195063,1704978656920,-1438.16231884,0.000399,9]
[311195064,1704978656987,-419.87653924,0.0003756,10]
[311195065,1704978657003,-1125.76767033,0.0003756,10]
[311195066,1704978657012,-681.10840249,0.000399,9]
[311195067,1704978657028,-5192.90065959,0.000399,9]
[311195068,1704978657039,-5397.62312439,0.000399,9]
[311195069,1704978657051,-5109.20726334,0.000399,9]
[311195070,1704978657062,-2782.01920682,0.000399,9]
[311195071,1704978657073,-975.76117375,0.000399,9]
[311195072,1704978657085,-704.94414546,0.000399,9]
[311195073,1704978657096,-979.44790424,0.000399,9]
[311195074,1704978657108,-6151.12286927,0.000399,9]
[311195075,1704978657119,-4444.73889024,0.000399,9]
[311195076,1704978657132,-5818.30397825,0.000399,9]
[311195077,1704978657144,-5084.00025059,0.000399,9]
[311195078,1704978657155,-3781.34689565,0.000399,9]
[311195079,1704978657166,-858.57181108,0.000399,9]
[311195080,1704978657177,-2998.21579862,0.000399,9]
[311195081,1704978657190,-8366.11778135,0.000399,9]
[311195082,1704978657201,-37037.14051899,0.000399,9]
[311195083,1704978657215,-23616.00000001,0.000399,9]
[311195084,1704978657227,-1987.07118812,0.000399,9]
[311195085,1704978657238,-2665.98153783,0.000399,9]
[311195086,1704978657249,-328.32741597,0.000399,9]
[311195087,1704978657260,-446.446,0.000399,9]
[311195088,1704978657271,-21471.37196622,0.000399,9]
[311195089,1704978657283,-370.98153674,0.000399,9]
[311195090,1704978657294,-1633.56051245,0.000399,9]
[311195091,1704978657305,-396.38676567,0.000399,9]
[311195092,1704978657316,-269.49706015,0.000399,9]
[311195093,1704978657330,-316.19458549,0.000399,9]
[311195094,1704978657341,-1055.07825606,0.000399,9]
[311195095,1704978657360,-637.84853028,0.000399,9]
[311195096,1704978657451,-443.4506406,0.000399,9]
[311195097,1704978657463,-10000.0,0.000399,9]
[311195098,1704978657768,-422.09056143,0.00039178,4]
[311195099,1704978657815,-77.90943857,0.00039178,4]
[311195100,1704978657824,-540.20053851,0.000399,9]
[311195101,1704978657862,-2127.58994417,0.000399,9]
[311195102,1704978657877,-15767.7065355,0.000399,9]
[311195103,1704978657909,-1152.38404827,0.000399,9]
[311195104,1704978657920,-419.90774579,0.000399,9]
[311195105,1704978657929,-151.0,0.000399,7]
[311195106,1704978657940,-151.0,0.000399,7]
[311195107,1704978657950,-193.16846,0.000399,7]
[311195108,1704978657959,-193.16846,0.000399,7]
[311195109,1704978657969,-151.0,0.000399,7]
[311195110,1704978657983,-274.233686,0.000399,7]
[311195111,1704978657992,-326.86447625,0.00039943,15]
[311195112,1704978658001,-1846.03123711,0.00039944,15]
[311195113,1704978658011,-1127.4196267,0.00039948,15]
[311195114,1704978658020,-5610.82041493,0.0003995,15]
[311195115,1704978658247,-877.68471504,0.0003995,15]
[311195116,1704978658409,-472.47,0.0003995,15]
[311195280,1704979610127,-150.00047057,0.00029142,2]
[311195296,1704979762099,-5654.51620467,0.00029035,2]
[311195322,1704979831707,-389.38287665,0.00029029,2]
[311195326,1704979831719,-10.59501143,0.00029029,2]
[311195328,1704979831728,-430.89321108,0.0002903,2]
[311195329,1704979831737,-181.0,0.0002903,2]
[311195330,1704979831747,-147.7097358,0.00029031,2]
[311195331,1704979831759,-147.37710667,0.00029031,2]
[311195332,1704979831768,-643.52399551,0.00029032,2]
[311195333,1704979831780,-380.16858511,0.00029032,2]
[311195334,1704979834142,-223.18488555,0.00029032,2]
[311195335,1704979834152,-48.29965398,0.00029032,2]
[311195336,1704979834170,-419.46488816,0.00029032,2]
[311195337,1704979834183,-549.4051044,0.00029032,2]
[311195338,1704979834193,-169.10839639,0.00029035,2]
[311195339,1704979834205,-1421.6906748,0.00029035,2]
[311195340,1704979834215,-383.4693252,0.00029035,2]
[311195341,1704979834226,-1387.4499996,0.00029035,2]
[311195342,1704979834239,-344.58346237,0.00029035,2]
[311195343,1704979834249,-358.63077331,0.00029035,2]
[311195344,1704979834260,-161.5115625,0.00029043,2]
[311195345,1704979834270,-150.0,0.00029141,2]
[311195346,1704979834279,-251.37315364,0.00029157,2]
[311195347,1704979834289,-347.19041964,0.00029159,2]
[311195348,1704979834315,-152.79958036,0.00029159,2]
[311195349,1704979834324,-105.95041964,0.00029159,2]
[311195350,1704979834336,-2632.00958036,0.00029159,2]
[311195351,1704979834346,-523.20670564,0.00029498,2]
[311195352,1704979834355,-683.88,0.00029499,2]
[311195353,1704979834365,-4353.528154,0.000295,2]
[311195402,1704979835350,-944.78350932,0.000295,2]
[311195403,1704979835363,-511.35636005,0.000295,2]
[311195404,1704979835375,-1007.62309416,0.000295,2]
[311195405,1704979835387,-1454.97093426,0.000295,2]
[311195406,1704979835399,-4607.51088024,0.000295,2]
[311195407,1704979835414,-267.5,0.000295,2]
[311195408,1704979835427,-423.98137478,0.000295,2]
[311195410,1704979835448,-5529.02123061,0.000295,2]
[311195412,1704979835462,-195.68945489,0.000298,2]
[311195415,1704979835472,-436.07,0.0002992,2]
[311195417,1704979835483,-155.0,0.0003,4]
[311195419,1704979835494,-161.51156246,0.00030555,2]
[311195421,1704979835504,-136.96681063,0.00031699,2]
[311195423,1704979835519,-988.96028937,0.00031699,2]
[311195425,1704979835531,-20867.0,0.000318,3]
[311195427,1704979835542,-250.0,0.00031867,2]
[311195429,1704979835552,-200.0,0.00031867,2]
[311195431,1704979835563,-153.0,0.00031867,2]
[311195433,1704979835574,-214.76,0.00031883,2]
[311195435,1704979835585,-2788.84,0.00031885,2]
[311195437,1704979835596,-1217.14509877,0.00031899,2]
[311195440,1704979835610,-2159.46645124,0.00031899,2]
[311195442,1704979835623,-6623.38844999,0.00031899,2]
[311195444,1704979835633,-169.83,0.000319,2]
[311195446,1704979835644,-2000.0,0.0003191,2]
[311195448,1704979835655,-471.57,0.00031949,2]
[311195450,1704979835670,-250.0,0.00031953,2]
[311195452,1704979835681,-14038.32,0.00031966,2]
[311195454,1704979835691,-150.0,0.00032029,2]
[311195456,1704979835701,-210.0,0.00032055,3]
[311195458,1704979835711,-204.0,0.00032065,2]
[311195460,1704979835722,-205.0,0.00032065,2]
[311195462,1704979835732,-161.51156246,0.00032067,2]
[311195464,1704979835743,-169.83,0.00032068,2]
[311195466,1704979835753,-174.03,0.00032092,2]
[311195468,1704979835763,-347.9,0.00032101,2]
[311195470,1704979835775,-250.0,0.0003211,2]
[311195473,1704979835785,-1811.7,0.00032143,2]
[311195475,1704979835795,-156.26,0.00032175,2]
[311195477,1704979835806,-436.07,0.00032184,2]
[311195479,1704979835815,-2614.48,0.00032203,2]
[311195481,1704979835826,-153.37,0.00032215,2]
[311195483,1704979835836,-169.83,0.00032236,2]
[311195485,1704979835846,-169.83,0.00032404,2]
[311195487,1704979835855,-169.83,0.00032572,2]
[311195489,1704979835865,-159.44,0.0003263,2]
[311195491,1704979835875,-169.83,0.0003274,2]
[311195493,1704979835886,-172.87,0.0003286,2]
[311195495,1704979835896,-500.0,0.00032877,2]
[311195497,1704979835907,-473.43,0.00032877,15]
[311195499,1704979835921,-169.83,0.00032908,2]
[311195501,1704979835931,-471.57,0.00032927,2]
[311195503,1704979835941,-169.83,0.00033076,2]
[311195505,1704979835951,-169.83,0.00033243,2]
[311195507,1704979835961,-169.83,0.00033411,2]
[311195509,1704979835971,-300.0,0.00033445,2]
[311195511,1704979835981,-161.51156246,0.00033579,2]
[311195513,1704979835991,-169.83,0.00033579,2]
[311195515,1704979836000,-159.44,0.00033653,2]
[311195517,1704979836010,-169.83,0.00033747,2]
[311195519,1704979836019,-156.26,0.00033852,2]
[311195521,1704979836029,-471.57,0.00033906,2]
[311195523,1704979836039,-169.83,0.00033915,2]
[311195525,1704979836048,-1000.0,0.00034,4]
[311195527,1704979836058,-169.83,0.00034083,2]
[311195529,1704979836068,-167.0,0.00034139,2]
[311195531,1704979836078,-169.83,0.00034251,2]
[311195533,1704979836087,-169.83,0.00034419,2]
[311195535,1704979836097,-436.07,0.00034447,2]
[311195537,1704979836107,-1546.179621,0.0003452,2]
[311195539,1704979836118,-13818.590489,0.0003452,2]
[311195541,1704979836128,-215.11,0.00034521,2]
[311195543,1704979836138,-169.83,0.00034587,2]
[311195545,1704979836147,-201.6,0.00034654,2]
[311195547,1704979836157,-1817.2,0.00034654,2]
[311195549,1704979836169,-300.93,0.00034654,2]
[311195551,1704979836179,-798.4,0.00034654,2]
[311195553,1704979836188,-158.24,0.00034654,2]
[311195555,1704979836197,-159.44,0.00034676,2]
[311195557,1704979836207,-169.83,0.00034754,2]
[311195559,1704979836217,-2319.269432,0.00034794,2]
[311195561,1704979836226,-20727.885734,0.00034794,2]
[311195563,1704979836236,-300.0,0.00034814,2]
[311195565,1704979836246,-1817.2,0.00034854,2]
[311195567,1704979836261,-204.0,0.00034859,7]
[311195569,1704979836271,-288.06509443,0.00034868,7]
[311195571,1704979836281,-471.57,0.00034884,2]
[311195573,1704979836291,-169.83,0.00034922,2]
[311195575,1704979836304,-3092.359243,0.00034931,2]
[311195578,1704979836314,-27637.180979,0.00034931,2]
[311195580,1704979836324,-1408.29,0.0003499,2]
[311195582,1704979836335,-1408.29,0.0003499,2]
[311195584,1704979836346,-82505.3951086,0.00035,2]
[311195586,1704979836366,-923.75000001,0.00035,2]
[311195589,1704979836379,-47265.99873951,0.00035,2]
[311195591,1704979836391,-254.72102387,0.00035,2]
[311195618,1704979836675,-722.47643247,0.00029028,2]
[311195620,1704979836688,-277.52356753,0.00029028,2]
[311195622,1704979836699,-434.00562166,0.00035,2]
[311195646,1704979836941,-257.69497186,0.00035,2]
[311195648,1704979836953,-5199.72779891,0.00035,2]
[311195651,1704979836965,-267.3,0.00035,2]
[311195653,1704979836976,-345.65559679,0.00035,2]
[311195747,1704979837763,-7415.9702804,0.00029035,2]
[311195749,1704979837773,-145673.83351945,0.00035,2]
[311195751,1704979837783,-1817.2,0.00035054,2]
[311195753,1704979837793,-3865.449054,0.00035068,2]
[311195755,1704979837802,-34546.476224,0.00035068,2]
[311195757,1704979837811,-169.83,0.0003509,2]
[311195759,1704979837821,-161.51156246,0.0003509,2]
[311195760,1704979837830,-1817.2,0.00035255,2]
[311195761,1704979837839,-153.84,0.00035255,2]
[311195762,1704979837848,-293.0,0.00035261,3]
[311195763,1704979837858,-167.0,0.00035266,2]
[311195764,1704979837867,-5411.628676,0.00035342,2]
[311195765,1704979837877,-48365.066713,0.00035342,2]
[311195766,1704979837886,-1817.2,0.00035455,2]
[311195767,1704979837896,-151.36,0.00035616,2]
[311195768,1704979837905,-1817.2,0.00035655,2]
[311195770,1704979837916,-159.44,0.000357,2]
[311195772,1704979837925,-288.06509439,0.0003573,7]
[311195774,1704979837934,-1817.2,0.00035855,2]
[311195776,1704979837943,-500.0,0.00035859,2]
[311195778,1704979837952,-936.1967,0.00035859,2]
[311195780,1704979837961,-471.57,0.00035863,2]
[311195782,1704979837970,-1408.29,0.00035949,2]
[311195784,1704979837980,-225.26176304,0.00035949,2]
[311195786,1704979837989,-212.89116127,0.00035957,4]
[311195788,1704979837998,-806.89987082,0.00035957,4]
[311195789,1704979838007,-155.0,0.00035957,4]
[311195791,1704979838017,-219.88676656,0.00035957,4]
[311195794,1704979838026,-295.43170432,0.00035957,4]
[311195796,1704979838035,-9231.79671935,0.00035958,4]
[311195798,1704979838044,-12791.10218922,0.00035959,11]
[311195800,1704979838054,-51163.36439969,0.00035959,12]
[311195802,1704979838063,-8181.66111988,0.00035966,10]
[311195804,1704979838072,-47028.46100848,0.00035966,12]
[311195806,1704979838082,-2233.85189791,0.00035966,11]
[311195808,1704979838091,-10873.15773318,0.00036,4]
[311195810,1704979838101,-150.49,0.00036,2]
[311195812,1704979838110,-150.49,0.00036,2]
[311195814,1704979838119,-165.01402374,0.00036053,2]
[311195816,1704979838128,-1817.2,0.00036055,2]
[311195817,1704979838138,-171.13114809,0.00036089,2]
[311195836,1704979838311,-1379.15,0.00036135,2]
[311195838,1704979838321,-500.0,0.000362,2]
[311195840,1704979838331,-150.37318911,0.00036211,2]
[311195842,1704979838340,-1817.2,0.00036256,2]
[311195844,1704979838349,-153.84,0.00036323,2]
[311195846,1704979838360,-167.0,0.00036392,2]
[311195848,1704979838369,-311.32142152,0.000364,2]
[311195850,1704979838379,-686.23856624,0.00036405,4]
[311195852,1704979838389,-1817.2,0.00036456,2]
[311195854,1704979838398,-288.06509439,0.00036591,8]
[311195857,1704979838408,-161.51156246,0.00036602,2]
[311195858,1704979838417,-473.43,0.00036613,15]
[311195860,1704979838426,-337.62,0.00036668,2]
[311195862,1704979838436,-436.07,0.00036711,2]
[311195865,1704979838446,-159.44,0.00036723,2]
[311195867,1704979838456,-652.33048324,0.0003678,2]
[311195869,1704979838465,-471.57,0.00036841,2]
[311195871,1704979838475,-173.914164,0.0003701,2]
[311195873,1704979838484,-193.23796,0.0003701,2]
[311195875,1704979838493,-1500.0,0.000371,23]
[311195877,1704979838502,-152.05,0.000371,2]
[311195879,1704979838514,-153.84,0.00037391,2]
[311195881,1704979838524,-156.0,0.000374,7]
[311195883,1704979838534,-1379.15,0.0003745,2]
[311195885,1704979838543,-159.88122009,0.00037451,7]
[311195887,1704979838552,-288.06509439,0.00037453,8]
[311195889,1704979838562,-1913.286752,0.00037471,30]
[311195891,1704979838571,-173.914164,0.00037472,2]
[311195893,1704979838580,-167.0,0.00037519,2]
[311195895,1704979838590,-204.0,0.00037652,13]
[311195897,1704979838599,-159.44,0.00037746,2]
[311195899,1704979838608,-151.0,0.00037788,7]
[311195901,1704979838617,-232.84074768,0.000378,10]
[311195903,1704979838626,-153.46,0.000378,3]
[311195905,1704979838635,-153.46,0.000378,3]
[311195907,1704979838644,-153.46,0.000378,3]
[311195909,1704979838653,-153.46,0.000378,3]
[311195911,1704979838663,-153.46,0.000378,3]
[311195913,1704979838674,-153.46,0.000378,3]
[311195915,1704979838683,-153.46,0.000378,3]
[311195917,1704979838692,-153.46,0.000378,3]
[311195919,1704979838700,-153.46,0.000378,3]
[311195921,1704979838709,-153.46,0.000378,3]
[311195923,1704979838718,-153.46,0.000378,3]
[311195925,1704979838727,-471.57,0.0003782,2]
[311195927,1704979838738,-1545.64420957,0.00037894,11]
[311195929,1704979838747,-173.914164,0.00037935,2]
[311195931,1704979838756,-193.23796,0.00037935,2]
[311195933,1704979838766,-413.85401474,0.00037953,2]
[311195935,1704979838775,-2472.30301271,0.00038,4]
[311195937,1704979838785,-184.0,0.00038,2]
[311195939,1704979838794,-686.87814676,0.00038001,4]
[311195941,1704979838803,-1000.0,0.00038077,10]
[311195943,1704979838812,-237.84190826,0.00038077,8]
[311195945,1704979838821,-262.18536026,0.00038077,8]
[311195947,1704979838829,-1158.46291972,0.00038077,8]
[311195949,1704979838839,-158.46291972,0.00038077,5]
[311195951,1704979838848,-500.0,0.00038077,8]
[311195953,1704979838857,-286.67776114,0.00038077,8]
[311195955,1704979838866,-2508.60023417,0.00038111,30]
[311195957,1704979838875,-161.51156246,0.00038114,2]
[311195958,1704979838884,-180.0,0.00038119,2]
[311195960,1704979838893,-1545.64420957,0.00038228,11]
[311195962,1704979838902,-167.0,0.00038251,2]
[311195964,1704979838911,-288.06509439,0.00038315,8]
[311195965,1704979838923,-414.22,0.00038337,2]
[311195967,1704979838933,-200.0,0.00038356,2]
[311195969,1704979838942,-21927.89,0.00038356,2]
[311195971,1704979838951,-173.914164,0.00038398,2]
[311195973,1704979838961,-153.84,0.0003846,2]
[311195975,1704979838972,-5000.0,0.000385,30]
[311195977,1704979838981,-414.22,0.00038539,2]
[311195979,1704979838991,-151.0,0.00038559,4]
[311195981,1704979839000,-1545.64420957,0.00038562,12]
[311195983,1704979839009,-151.36,0.00038584,2]
[311195985,1704979839018,-1132.56,0.00038632,2]
[311195987,1704979839027,-167.0,0.00038646,2]
[311195989,1704979839036,-182.33,0.00038651,60]
[311195991,1704979839045,-8071.0,0.00038704,2]
[311195993,1704979839054,-834.0,0.00038704,2]
[311195995,1704979839063,-763.358,0.00038704,2]
[311195997,1704979839073,-414.22,0.00038741,2]
[311195999,1704979839082,-1379.15,0.00038766,2]
[311196001,1704979839092,-159.44,0.00038769,2]
[311196003,1704979839101,-1408.29,0.00038773,2]
[311196005,1704979839110,-153.0,0.00038783,2]
[311196007,1704979839120,-93247.548163,0.00038783,3]